bitfinex/quotes_SOLUSD_20240824
["timestamp","ask_amount","ask_price","bid_price","bid_amount"]
[1724531272556,45.0,161.32,161.24,16.6586]
[1724531277584,11.81748216,161.33,161.24,16.6586]
[1724531282859,11.81748216,161.31,161.24,16.6586]
[1724531285075,18.01678216,161.31,161.24,16.6586]
[1724531286259,11.81748216,161.29,161.24,16.6586]
[1724531286685,6.1996,161.3,161.24,16.6586]
[1724531286885,6.48351733,161.36,161.25,13.0576978]
[1724531287090,20.0,161.35,161.26,6.647]
[1724531287585,26.1977,161.35,161.26,11.30258666]
[1724531288107,18.01558216,161.34,161.26,11.30258666]
[1724531288394,45.0,161.33,161.26,11.30258666]
[1724531289666,45.0,161.33,161.26,6.647]
[1724531289982,45.0,161.33,161.26,11.30258666]
[1724531290188,45.0,161.33,161.26,6.647]
[1724531290791,45.0,161.33,161.26,11.30242462]
[1724531290966,45.0,161.33,161.26,6.647]
[1724531294682,18.01628216,161.32,161.26,6.647]
[1724531294987,45.0,161.31,161.26,6.647]
[1724531295158,45.0,161.31,161.24,16.6586]
[1724531295898,11.81748216,161.3,161.24,16.6586]
[1724531296182,45.0,161.29,161.24,16.6586]
[1724531296704,11.81748216,161.28,161.24,16.6586]
[1724531296987,45.0,161.27,161.24,16.6586]
[1724531299398,45.0,161.27,161.22,6.3735]
[1724531302693,11.81748216,161.26,161.22,6.3735]
[1724531304496,11.81748216,161.26,161.23,3.01483737]
[1724531304699,11.81748216,161.26,161.22,6.3735]
[1724531304902,11.81748216,161.26,161.23,3.01483109]
[1724531305074,11.81748216,161.26,161.22,6.3735]
[1724531320185,45.0,161.27,161.22,6.3735]
[1724531337623,11.81748216,161.29,161.22,6.3735]
[1724531337927,45.0,161.28,161.22,6.3735]
[1724531339124,45.0,161.29,161.22,6.3735]
[1724531343309,11.81748216,161.3,161.22,6.3735]
[1724531344723,45.0,161.29,161.22,6.3735]
[1724531351117,45.0,161.29,161.23,4.65666204]
[1724531351320,45.0,161.29,161.24,4.65666204]
[1724531351522,45.0,161.29,161.22,6.3735]
[1724531351732,45.0,161.29,161.23,6.20909798]
[1724531351948,45.0,161.29,161.24,6.20909798]
[1724531352125,45.0,161.29,161.25,1.55243562]
[1724531352323,45.0,161.29,161.26,1.55243562]
[1724531352524,45.0,161.29,161.23,4.65663683]
[1724531352741,45.0,161.29,161.24,1.5524272]
[1724531352947,45.0,161.29,161.22,6.3735]
[1724531353532,11.81748216,161.28,161.22,6.3735]
[1724531353727,45.0,161.27,161.22,6.3735]
[1724531357851,11.81748216,161.28,161.22,6.3735]
[1724531358030,45.0,161.27,161.22,6.3735]
[1724531358230,6.2,161.3,161.22,6.3735]
[1724531358437,45.0,161.29,161.22,6.3735]
[1724531360957,42.22186494,161.35,161.22,18.19098216]
[1724531361133,42.22186494,161.35,161.23,16.6505]
[1724531361134,11.81748216,161.34,161.23,16.6505]
[1724531361638,20.0,161.33,161.24,11.81748216]
[1724531362454,45.0,161.32,161.24,11.81748216]
[1724531364332,45.0,161.32,161.25,6.6319]
[1724531365359,45.0,161.32,161.26,3.01406257]
[1724531365656,45.0,161.33,161.27,3.01406257]
[1724531365844,45.0,161.33,161.25,6.6319]
[1724531366043,45.0,161.33,161.26,3.01405352]
[1724531366235,45.0,161.33,161.27,3.01405352]
[1724531366561,45.0,161.33,161.25,6.6319]
[1724531366768,45.0,161.33,161.26,3.01405352]
[1724531367269,45.0,161.33,161.27,3.01405352]
[1724531367463,45.0,161.33,161.25,6.6319]
[1724531367677,45.0,161.33,161.26,3.0140537]
[1724531367842,45.0,161.33,161.25,6.6319]
[1724531385865,45.0,161.33,161.25,6.6319]
[1724531388980,45.0,161.33,161.26,27.20988216]
[1724531389374,11.81748216,161.37,161.28,11.81748216]
[1724531390169,18.01478216,161.37,161.28,11.81748216]
[1724531390667,45.0,161.36,161.28,11.81748216]
[1724531391681,45.0,161.36,161.26,27.20988216]
[1724531396814,11.81748216,161.35,161.26,15.3924]
[1724531397009,45.0,161.34,161.26,15.3924]
[1724531407916,45.0,161.34,161.23,6.45103045]
[1724531407917,6.1966,161.38,161.29,11.81748216]
[1724531408595,6.1966,161.38,161.3,6.0132]
[1724531409008,6.1969,161.37,161.3,6.0132]
[1724531409710,45.0,161.36,161.3,6.0132]
[1724531409917,51.1973,161.36,161.3,6.0132]
[1724531410294,18.01518216,161.35,161.3,6.0132]
[1724531410509,45.0,161.34,161.3,6.0132]
[1724531420308,11.81748216,161.33,161.28,15.2514]
[1724531420507,45.0,161.32,161.28,15.2514]
[1724531427137,51.1988,161.32,161.28,15.2514]
[1724531427342,18.01668216,161.31,161.26,6.2334]
[1724531427540,11.81748216,161.29,161.24,15.1351]
[1724531427840,45.0,161.28,161.24,15.1351]
[1724531428048,45.0,161.28,161.25,7.67090284]
[1724531428215,45.0,161.28,161.24,15.1351]
[1724531428411,45.0,161.28,161.25,3.01472344]
[1724531428630,45.0,161.28,161.24,15.1351]
[1724531428835,45.0,161.28,161.25,3.01466059]
[1724531429031,45.0,161.28,161.24,15.1351]
[1724531429236,45.0,161.28,161.25,3.01463966]
[1724531429515,45.0,161.28,161.24,15.1351]
[1724531429718,45.0,161.28,161.25,3.01463358]
[1724531429918,45.0,161.28,161.24,15.1351]
[1724531430149,45.0,161.28,161.25,3.01465417]
[1724531430354,45.0,161.28,161.24,15.1351]
[1724531430924,11.81748216,161.27,161.22,6.2334]
[1724531431237,45.0,161.26,161.2,15.1351]
[1724531431537,45.0,161.26,161.21,3.01530567]
[1724531431740,45.0,161.26,161.2,15.1351]
[1724531431943,45.0,161.26,161.21,3.01540213]
[1724531432136,45.0,161.26,161.2,15.1351]
[1724531432465,11.81748216,161.25,161.18,6.2334]
[1724531432753,45.0,161.26,161.18,6.2334]
[1724531432754,11.81748216,161.23,161.18,6.2334]
[1724531433224,45.0,161.22,161.18,6.2334]
[1724531433426,45.0,161.22,161.17,3.0159196]
[1724531434060,45.0,161.22,161.17,3.01591998]
[1724531434226,45.0,161.22,161.16,15.6247]
[1724531435268,11.81748216,161.21,161.16,15.6247]
[1724531435437,11.81748216,161.21,161.14,6.5865]
[1724531435768,45.0,161.2,161.14,6.5865]
[1724531440551,11.81748216,161.19,161.12,15.6247]
[1724531440753,45.0,161.18,161.12,15.6247]
[1724531444163,45.0,161.19,161.12,15.6247]
[1724531444362,45.0,161.2,161.13,11.81748216]
[1724531444576,45.0,161.21,161.13,11.81748216]
[1724531445080,6.2024,161.23,161.15,11.81748216]
[1724531445282,16.0974,161.28,161.15,11.81748216]
[1724531445481,6.2015,161.25,161.16,1.24076268]
[1724531446894,45.0,161.24,161.15,11.81748216]
[1724531447763,45.0,161.24,161.17,11.81748216]
[1724531448160,6.201,161.27,161.19,11.81748216]
[1724531448766,6.2004,161.28,161.19,11.81748216]
[1724531450194,45.0,161.27,161.19,11.81748216]
[1724531451080,63.01848216,161.27,161.18,16.4739]
[1724531451589,6.2011,161.26,161.18,16.4739]
[1724531451793,45.0,161.25,161.18,16.4739]
[1724531463920,6.2,161.29,161.2,11.81748216]
[1724531464079,6.1999,161.3,161.21,1.24038556]
[1724531464279,6.1999,161.3,161.2,11.81748216]
[1724531464504,6.2,161.29,161.2,11.81748216]
[1724531464880,6.2,161.29,161.2,13.05782805]
[1724531465083,6.2,161.29,161.21,1.24036765]
[1724531465277,6.2,161.29,161.2,11.81748216]
[1724531465678,45.0,161.28,161.2,11.81748216]
[1724531466882,45.0,161.28,161.19,6.2806]
[1724531466883,11.81748216,161.27,161.19,6.2806]
[1724531467185,6.2015,161.25,161.19,6.2806]
[1724531467489,45.0,161.24,161.19,6.2806]
[1724531467707,51.202,161.24,161.19,6.2806]
[1724531468015,51.202,161.24,161.18,16.4739]
[1724531473835,51.202,161.24,161.19,1.55289999]
[1724531474040,51.202,161.24,161.18,16.4739]
[1724531474340,51.202,161.24,161.19,1.55289386]
[1724531474534,51.202,161.24,161.18,16.4739]
[1724531474726,51.202,161.24,161.19,1.55290261]
[1724531474928,51.202,161.24,161.18,16.4739]
[1724531475132,51.202,161.24,161.19,1.55290261]
[1724531475328,51.202,161.24,161.18,16.4739]
[1724531475530,51.202,161.24,161.19,1.55290261]
[1724531475746,51.202,161.24,161.18,16.4739]
[1724531475950,18.01898216,161.25,161.19,1.55290261]
[1724531476260,18.01898216,161.25,161.18,16.4739]
[1724531476573,18.01898216,161.25,161.19,1.55290245]
[1724531476743,18.01898216,161.25,161.18,16.4739]
[1724531476935,6.202,161.24,161.18,16.4739]
[1724531477264,56.81748216,161.23,161.18,16.4739]
[1724531478149,63.01988216,161.23,161.18,16.4739]
[1724531478348,11.81748216,161.21,161.18,16.4739]
[1724531478551,11.81748216,161.21,161.15,6.2806]
[1724531478846,45.0,161.23,161.16,3.01600988]
[1724531479044,45.0,161.23,161.17,3.01600988]
[1724531479264,45.0,161.24,161.16,4.65801794]
[1724531479440,18.01898216,161.25,161.17,3.01595478]
[1724531479641,18.01898216,161.25,161.16,4.65801794]
[1724531480764,45.0,161.24,161.16,4.65801794]
[1724531481746,45.0,161.24,161.15,18.09808216]
[1724531481946,11.81748216,161.23,161.16,4.6579873]
[1724531482165,45.0,161.22,161.15,6.2806]
[1724531484252,45.0,161.22,161.15,18.09808216]
[1724531484569,11.81748216,161.23,161.15,18.09808216]
[1724531486264,18.01948216,161.24,161.15,18.09808216]
[1724531487174,11.81748216,161.22,161.15,6.2806]
[1724531487378,45.0,161.21,161.15,6.2806]
[1724531491385,63.02018216,161.22,161.15,6.2806]
[1724531508403,51.2027,161.22,161.15,6.2806]
[1724531508572,63.02018216,161.22,161.15,6.2806]
[1724531518992,11.81748216,161.18,161.15,6.2806]
[1724531519188,11.81748216,161.18,161.14,15.5344]
[1724531519417,11.81748216,161.16,161.14,15.5344]
[1724531520000,11.81748216,161.16,161.11,6.4493]
[1724531524198,45.0,161.15,161.11,6.4493]
[1724531525008,11.81748216,161.16,161.11,6.4493]
[1724531536922,11.81748216,161.16,161.12,1.55339571]
[1724531537127,11.81748216,161.16,161.13,1.55339571]
[1724531537433,11.81748216,161.16,161.14,1.55339571]
[1724531537731,11.81748216,161.16,161.15,1.55339571]
[1724531538026,56.81748216,161.16,161.15,1.55339571]
[1724531538530,56.81748216,161.16,161.11,6.4493]
[1724531538733,56.81748216,161.16,161.15,1.55338647]
[1724531538930,56.81748216,161.16,161.11,6.4493]
[1724531539823,11.81748216,161.18,161.12,3.01710215]
[1724531540006,11.81748216,161.18,161.13,3.01710215]
[1724531540204,11.81748216,161.18,161.11,6.4493]
[1724531540507,11.81748216,161.18,161.12,3.01706717]
[1724531540809,11.81748216,161.18,161.13,3.01706717]
[1724531541108,11.81748216,161.18,161.11,6.4493]
[1724531541309,11.81748216,161.18,161.12,3.01706279]
[1724531541522,11.81748216,161.18,161.13,3.01706279]
[1724531541835,11.81748216,161.18,161.11,6.4493]
[1724531542010,11.81748216,161.18,161.12,3.01706279]
[1724531542324,11.81748216,161.18,161.13,3.01706279]
[1724531542629,6.2039,161.19,161.14,3.01706279]
[1724531542929,45.0,161.18,161.12,4.65921373]
[1724531543131,45.0,161.18,161.13,3.01706125]
[1724531543310,45.0,161.18,161.12,4.65921373]
[1724531543632,45.0,161.18,161.13,3.01707784]
[1724531543941,45.0,161.18,161.12,4.65921373]
[1724531545333,11.81748216,161.17,161.12,4.65921373]
[1724531547231,11.81748216,161.17,161.11,6.4493]
[1724531547434,11.81748216,161.17,161.12,4.65921411]
[1724531547617,11.81748216,161.17,161.11,6.4493]
[1724531547932,11.81748216,161.17,161.12,4.65921455]
[1724531548101,11.81748216,161.17,161.11,6.4493]
[1724531548306,11.81748216,161.17,161.12,4.6592376]
[1724531548520,11.81748216,161.17,161.11,6.4493]
[1724531548723,11.81748216,161.17,161.12,4.65921411]
[1724531548917,11.81748216,161.17,161.11,6.4493]
[1724531549124,11.81748216,161.17,161.12,4.65921455]
[1724531549330,45.0,161.16,161.11,6.4493]
[1724531549509,45.0,161.16,161.12,4.65921499]
[1724531549709,45.0,161.16,161.11,6.4493]
[1724531549909,45.0,161.16,161.12,4.65921455]
[1724531550132,45.0,161.16,161.11,6.4493]
[1724531550332,45.0,161.16,161.12,4.65923848]
[1724531550543,45.0,161.16,161.11,6.4493]
[1724531550835,45.0,161.16,161.12,4.65923804]
[1724531551027,45.0,161.16,161.11,6.4493]
[1724531551227,45.0,161.16,161.12,4.65921499]
[1724531551429,45.0,161.16,161.13,4.65921499]
[1724531551613,45.0,161.16,161.12,4.65921499]
[1724531551817,45.0,161.16,161.11,6.4493]
[1724531552025,45.0,161.16,161.12,4.65923848]
[1724531552240,45.0,161.16,161.11,6.4493]
[1724531552612,45.0,161.16,161.12,4.65923804]
[1724531552922,45.0,161.16,161.13,4.65923804]
[1724531553236,45.0,161.16,161.11,6.4493]
[1724531553237,45.0,161.16,161.12,4.65923804]
[1724531553438,45.0,161.16,161.13,4.65923804]
[1724531553639,45.0,161.16,161.12,4.65923804]
[1724531553812,45.0,161.16,161.13,4.65923804]
[1724531554135,45.0,161.16,161.11,4.65923804]
[1724531554327,45.0,161.16,161.12,4.65923804]
[1724531554531,45.0,161.16,161.13,4.65923804]
[1724531554711,45.0,161.16,161.11,4.65923804]
[1724531554908,45.0,161.16,161.12,4.65923804]
[1724531555126,45.0,161.16,161.13,4.65923804]
[1724531555426,45.0,161.16,161.11,4.65923804]
[1724531555639,45.0,161.16,161.1,15.416]
[1724531555640,45.0,161.16,161.12,4.65923804]
[1724531555819,45.0,161.16,161.1,15.416]
[1724531556025,45.0,161.16,161.13,4.65923797]
[1724531556231,45.0,161.16,161.1,15.416]
[1724531556418,45.0,161.16,161.11,4.65923885]
[1724531556618,45.0,161.16,161.1,15.416]
[1724531563746,11.81748216,161.17,161.1,15.416]
[1724531579732,11.81748216,161.13,161.1,15.416]
[1724531579926,11.81748216,161.13,161.08,6.3354]
[1724531581760,11.81748216,161.13,161.06,15.9997]
[1724531582136,45.0,161.12,161.06,15.9997]
[1724531582330,11.81748216,161.11,161.06,15.9997]
[1724531593165,11.81748216,161.11,161.04,6.1059]
[1724531596158,51.2065,161.12,161.04,6.1059]
[1724531599246,63.02398216,161.12,161.04,6.1059]
[1724531601952,45.0,161.12,161.04,6.1059]
[1724531602270,11.81748216,161.11,161.04,6.1059]
[1724531603386,45.0,161.12,161.04,6.1059]
[1724531603674,11.81748216,161.11,161.04,6.1059]
[1724531605449,11.81748216,161.11,161.05,2.99436266]
[1724531607065,45.0,161.1,161.05,2.99436266]
[1724531607364,11.81748216,161.09,161.05,2.99436266]
[1724531607576,11.81748216,161.09,161.03,2.99436266]
[1724531607870,11.81748216,161.09,161.02,15.3307]
[1724531608450,45.0,161.1,161.02,15.3307]
[1724531608652,56.81748216,161.1,161.02,15.3307]
[1724531609760,11.81748216,161.11,161.02,15.3307]
[1724531617963,21.7161,161.13,161.02,15.3307]
[1724531618181,56.81748216,161.12,161.02,15.3307]
[1724531618385,16.0304,161.17,161.05,11.81748216]
[1724531618692,11.81748216,161.15,161.05,13.05907179]
[1724531619559,11.81748216,161.15,161.05,11.81748216]
[1724531619886,45.0,161.14,161.05,11.81748216]
[1724531620370,45.0,161.14,161.04,6.4572]
[1724531620573,45.0,161.14,161.04,18.27468216]
[1724531624290,45.0,161.14,161.05,15.5366]
[1724531634173,11.81748216,161.13,161.05,15.5366]
[1724531640299,45.0,161.14,161.05,15.5366]
[1724531640476,20.0,161.16,161.07,6.6251]
[1724531640672,11.81748216,161.18,161.08,27.90688216]
[1724531641100,7.2039,161.19,161.08,27.90688216]
[1724531641297,12.81748216,161.19,161.09,6.6251]
[1724531641874,12.81748216,161.19,161.1,11.81748216]
[1724531643282,45.0,161.18,161.1,11.81748216]
[1724531645484,46.0,161.19,161.1,11.81748216]
[1724531645811,57.81748216,161.19,161.1,11.81748216]
[1724531646306,1.0,161.19,161.12,6.6251]
[1724531650216,12.81748216,161.19,161.12,6.6251]
[1724531651606,1.0,161.19,161.12,6.6251]
[1724531657301,12.81748216,161.19,161.12,6.6251]
[1724531657605,45.0,161.18,161.12,6.6251]
[1724531660993,12.81748216,161.19,161.12,6.6251]
[1724531661194,1.0,161.19,161.12,6.6251]
[1724531662920,1.0,161.19,161.12,18.44258216]
[1724531664423,255.4,161.25,161.11,16.0894]
[1724531664424,2.11356476,161.3,161.18,22.9492]
[1724531664625,6.2001,161.29,161.19,1.240467]
[1724531664926,11.81748216,161.28,161.18,22.9492]
[1724531665127,11.81748216,161.28,161.18,34.76668216]
[1724531665299,11.81748216,161.28,161.19,1.24051739]
[1724531665505,11.81748216,161.28,161.18,34.76668216]
[1724531665506,11.81748216,161.26,161.18,22.9492]
[1724531666625,45.0,161.25,161.18,22.9492]
[1724531668524,45.0,161.25,161.18,34.76668216]
[1724531669110,11.81748216,161.28,161.18,34.76668216]
[1724531670018,18.01788216,161.28,161.18,34.76668216]
[1724531670339,45.0,161.27,161.18,34.76668216]
[1724531672239,45.0,161.28,161.2,11.81748216]
[1724531673313,11.81748216,161.29,161.2,11.81748216]
[1724531674733,45.0,161.28,161.2,11.81748216]
[1724531676312,45.0,161.28,161.18,22.9492]
[1724531676616,45.0,161.28,161.19,11.81748216]
[1724531681227,11.81748216,161.27,161.18,22.9492]
[1724531681428,6.2015,161.25,161.18,22.9492]
[1724531681815,45.0,161.24,161.18,22.9492]
[1724531684035,11.81748216,161.23,161.18,22.9492]
[1724531684232,45.0,161.22,161.18,22.9492]
[1724531704460,51.2027,161.22,161.18,22.9492]
[1724531705956,45.0,161.22,161.18,22.9492]
[1724531710455,51.2027,161.22,161.18,22.9492]
[1724531710667,45.0,161.22,161.18,22.9492]
[1724531715267,11.81748216,161.21,161.11,22.2709]
[1724531715463,45.0,161.2,161.12,7.65181745]
[1724531715762,45.0,161.2,161.12,4.65904293]
[1724531716065,45.0,161.2,161.13,2.99277452]
[1724531716241,51.2035,161.2,161.12,4.65904293]
[1724531716849,51.2035,161.2,161.13,2.9928853]
[1724531717057,51.2035,161.2,161.12,4.65904293]
[1724531717963,51.2035,161.2,161.13,2.99289276]
[1724531718868,51.2035,161.2,161.12,4.65904293]
[1724531718869,51.2035,161.2,161.12,4.65916866]
[1724531719045,51.2035,161.2,161.13,2.99288491]
[1724531719542,6.2042,161.18,161.12,2.99288491]
[1724531719744,45.0,161.17,161.12,2.99288491]
[1724531721262,45.0,161.17,161.11,22.2709]
[1724531721469,45.0,161.17,161.12,2.99293815]
[1724531721647,6.2057,161.15,161.08,6.46233316]
[1724531721846,45.0,161.14,161.08,6.46233316]
[1724531722047,45.0,161.14,161.07,4.65927995]
[1724531722242,45.0,161.14,161.08,7.6529702]
[1724531722455,45.0,161.14,161.09,2.99369025]
[1724531722656,45.0,161.14,161.07,4.66008764]
[1724531722859,45.0,161.14,161.07,19.47126156]
[1724531723077,51.2054,161.15,161.08,4.66008764]
[1724531723282,51.2054,161.15,161.09,2.99369176]
[1724531723461,51.2054,161.15,161.08,4.66008764]
[1724531723767,51.2054,161.15,161.09,2.99365502]
[1724531724070,51.2054,161.15,161.08,4.66008764]
[1724531724246,51.2054,161.15,161.09,2.99365589]
[1724531724446,51.2054,161.15,161.1,2.99365589]
[1724531724752,51.2054,161.15,161.08,4.66004672]
[1724531724753,6.2061,161.13,161.08,7.65370261]
[1724531725065,45.0,161.12,161.06,7.65416489]
[1724531725269,45.0,161.12,161.07,2.99365589]
[1724531725472,45.0,161.12,161.08,2.99365589]
[1724531725670,45.0,161.12,161.06,4.66044093]
[1724531727165,51.2066,161.12,161.06,4.66044093]
[1724531727365,51.2066,161.12,161.03,4.66044093]
[1724531727581,51.2066,161.12,161.04,4.66044093]
[1724531727882,51.2066,161.12,161.02,11.81748216]
[1724531727883,6.2069,161.11,161.03,4.66097781]
[1724531728063,45.0,161.1,161.03,4.66097781]
[1724531728381,45.0,161.1,161.02,16.47845997]
[1724531728594,45.0,161.1,161.04,11.81748216]
[1724531729481,45.0,161.11,161.04,11.81748216]
[1724531729979,26.86848216,161.14,161.04,11.81748216]
[1724531730183,45.0,161.13,161.04,11.81748216]
[1724531731166,51.2062,161.13,161.04,11.81748216]
[1724531732882,6.2065,161.12,161.04,11.81748216]
[1724531733188,45.0,161.11,161.04,11.81748216]
[1724531740699,45.0,161.11,161.02,4.66068447]
[1724531740878,45.0,161.11,161.03,11.81748216]
[1724531741791,51.2069,161.11,161.03,11.81748216]
[1724531742597,6.2081,161.08,161.01,22.2709]
[1724531742810,45.0,161.07,161.01,22.2709]
[1724531750083,45.0,161.07,161.01,34.08838216]
[1724531755323,30.5662,161.14,161.03,11.81748216]
[1724531755626,15.051,161.14,161.07,11.81748216]
[1724531756932,45.0,161.13,161.07,11.81748216]
[1724531759024,6.2053,161.16,161.09,11.81748216]
[1724531761028,7.2044,161.18,161.09,11.81748216]
[1724531761240,7.2044,161.18,161.11,11.81748216]
[1724531761241,45.0,161.17,161.11,11.81748216]
[1724531761404,52.2043,161.18,161.11,11.81748216]
[1724531761724,6.2047,161.17,161.11,11.81748216]
[1724531761932,45.0,161.16,161.11,11.81748216]
[1724531762102,51.205,161.16,161.09,11.81748216]
[1724531768913,51.205,161.16,161.07,21.6766]
[1724531769115,51.205,161.16,161.09,11.81748216]
[1724531786044,51.205,161.16,161.07,21.6766]
[1724531786245,51.205,161.16,161.09,11.81748216]
[1724531787754,6.2054,161.15,161.07,21.6766]
[1724531787949,51.2057,161.14,161.07,15.1377]
[1724531788154,6.2057,161.14,161.06,11.81748216]
[1724531790927,6.2057,161.14,161.04,17.94698216]
[1724531790928,6.2062,161.13,161.04,17.94698216]
[1724531793856,6.2062,161.13,161.06,11.81748216]
[1724531799863,6.2062,161.13,161.06,16.47836674]
[1724531800154,6.2066,161.12,161.04,6.1295]
[1724531800365,6.2074,161.1,161.04,4.66100348]
[1724531800548,30.46748216,161.11,161.02,4.66174688]
[1724531800747,45.0,161.1,161.01,11.81748216]
[1724531800944,45.0,161.1,161.02,4.66174688]
[1724531801147,63.65,161.1,161.02,4.66174688]
[1724531801350,27.74848216,161.09,161.0,4.66174688]
[1724531801559,46.39848216,161.09,161.01,4.66174688]
[1724531801742,45.0,161.08,161.0,4.66174688]
[1724531802061,45.0,161.08,161.01,4.66174688]
[1724531802355,6.2085,161.07,161.0,4.66174688]
[1724531802559,45.0,161.06,161.0,4.66174688]
[1724531802768,45.0,161.06,160.99,11.81748216]
[1724531802934,45.0,161.06,161.0,4.66220534]
[1724531803566,45.0,161.06,160.99,16.4796875]
[1724531803861,45.0,161.06,161.0,4.66220534]
[1724531804270,33.82408216,161.05,160.99,4.66220534]
[1724531804565,51.2096,161.04,160.93,4.66321281]
[1724531804862,51.2096,161.04,160.95,11.81748216]
[1724531805037,51.2096,161.04,160.95,16.48069497]
[1724531805236,51.2096,161.04,160.96,4.66321281]
[1724531805458,51.2096,161.04,160.95,11.81748216]
[1724531807849,6.2102,161.03,160.93,6.46712234]
[1724531808062,6.2102,161.03,160.94,11.81748216]
[1724531808747,6.2102,161.03,160.96,11.81748216]
[1724531808950,51.2096,161.04,160.96,11.81748216]
[1724531810571,22.0066,161.05,160.98,11.81748216]
[1724531811068,22.0066,161.05,160.99,11.81748216]
[1724531811369,31.41413028,161.26,160.93,4.66324731]
[1724531811370,16.136,161.09,161.01,11.81748216]
[1724531811551,16.136,161.09,161.03,11.81748216]
[1724531812971,18.65,161.14,160.92,267.09581928]
[1724531812972,15.0498,161.19,161.07,11.81748216]
[1724531813270,21.2537,161.19,161.09,11.81748216]
[1724531813968,15.0498,161.19,161.09,11.81748216]
[1724531814567,15.0498,161.19,161.04,93.90162818]
[1724531814871,15.0498,161.19,161.08,11.81748216]
[1724531815450,46.0,161.18,161.08,11.81748216]
[1724531817450,57.81748216,161.18,161.08,11.81748216]
[1724531819981,1.0,161.18,161.1,11.81748216]
[1724531821173,1.0,161.18,161.11,1.24118098]
[1724531821373,1.0,161.18,161.1,11.81748216]
[1724531821548,46.0,161.18,161.1,11.81748216]
[1724531826357,46.0,161.18,161.08,11.81748216]
[1724531828565,46.0,161.18,161.08,29.2658817]
[1724531829166,46.0,161.18,161.1,11.81748216]
[1724531829369,46.0,161.18,161.11,1.24114881]
[1724531837287,1.0,161.18,161.11,1.24114881]
[1724531837459,1.0,161.18,161.09,17.44839954]
[1724531837658,1.0,161.18,161.1,11.81748216]
[1724531841767,1.0,161.18,161.1,13.05859496]
[1724531842672,1.0,161.18,161.1,11.81748216]
[1724531848199,1.0,161.18,161.09,17.44839954]
[1724531855800,1.0,161.18,161.1,11.81748216]
[1724531856673,1.0,161.18,161.11,2.99338877]
[1724531857478,1.0,161.18,161.12,2.99338877]
[1724531857678,1.0,161.18,161.11,4.65974186]
[1724531857890,1.0,161.18,161.12,2.99338839]
[1724531858087,1.0,161.18,161.11,4.65974186]
[1724531858289,1.0,161.18,161.12,2.99338839]
[1724531858508,1.0,161.18,161.13,2.99338839]
[1724531858702,1.0,161.18,161.1,11.81748216]
[1724531858903,1.0,161.18,161.11,7.65313127]
[1724531859213,1.0,161.18,161.12,7.65313127]
[1724531859504,1.0,161.18,161.13,2.99338877]
[1724531859716,1.0,161.18,161.1,11.81748216]
[1724531859920,1.0,161.18,161.11,7.65321586]
[1724531860079,1.0,161.18,161.12,7.65321586]
[1724531860401,1.0,161.18,161.13,7.65321586]
[1724531860602,1.0,161.18,161.14,2.99342894]
[1724531860802,1.0,161.18,161.1,11.81748216]
[1724531861012,1.0,161.18,161.11,7.65308537]
[1724531861193,1.0,161.18,161.12,7.65308537]
[1724531861393,1.0,161.18,161.13,7.65308537]
[1724531861593,1.0,161.18,161.14,2.99336814]
[1724531861790,1.0,161.18,161.1,11.81748216]
[1724531862007,1.0,161.18,161.11,7.65312795]
[1724531862228,1.0,161.18,161.12,7.65312795]
[1724531862406,1.0,161.18,161.13,7.65312795]
[1724531862709,1.0,161.18,161.14,2.99338722]
[1724531863012,1.0,161.18,161.1,11.81748216]
[1724531863186,1.0,161.18,161.11,7.65316341]
[1724531863389,1.0,161.18,161.12,4.659766]
[1724531863583,1.0,161.18,161.13,2.99339748]
[1724531863805,1.0,161.18,161.14,2.99339748]
[1724531863991,1.0,161.18,161.1,11.81748216]